Cogmind - Beta 13 @@@ ROGUE MODE // 2024.05.09 @ 18:44:03 Player: TinyBoulder Result: Destroyed by C-35 Carver with Carbide Saw Performance ------------- Evolutions (7) 3500 Regions Visited (20) 4000 Robots Destroyed (84) 420 Value Destroyed (3197) 3197 Prototype IDs (41) 820 Alien Tech Used (1) 200 Bonus (2222) 2222 TOTAL SCORE: 14359 Bonus ------- High Alert Combat Kills 182 Follower Combat Kills 242 Entered DSFs 500 Met Data Miner 300 Met Warlord at Base 500 MAIN.C Attacked Warlord 500 Friendly Fire -2 Cogmind --------- Core Integrity 0/1300 Matter 300/300 Energy 99/100 System Corruption 4% Temperature Cool (0) Movement Core (50) Location -3/Armory Parts ------- > --- POWER (2) -------- (None) > --- PROPULSION (4) --- (None) > --- UTILITY (10) ----- (None) > --- WEAPON (5) ------- (None) > --- INVENTORY (5) ---- Medium Matter Pod (100) System Guard Improved Plasma Cutter Peak State ------------ > --- POWER ------------ Antimatter-Nuclear Reactor > --- PROPULSION ------- Treaded Siege-Armored Exoskeleton > --- UTILITY ---------- Armored Scrap Engine Power Amplifier Advanced Heat Sink Advanced Heat Sink Advanced Visual Processing Unit Advanced Sensor Array Core Analyzer Thermal Barrier Improved Energy Mantle > --- WEAPON ----------- Micro-nuke Launcher Hpw. Energy Quantum Construct/G Directed Nova Construct/G > --- INVENTORY -------- Experimental Coolant Injector Medium Matter Pod System Guard Improved Plasma Cutter [Rating: 125] Favorites ----------- Power Constructs Engine Ion Engine Power Core Light Nuclear Core Reactor Constructs Propulsion Improved Treads Treads Improved Treads Leg Aluminum Leg Wheel Compact Wheel Utility Advanced Visual Processing Unit Device Armored Scrap Engine Storage Small Storage Unit Processor Advanced Visual Processing Unit Hackware Authchip [Power] Protection Light Armor Plating Weapon Shotgun Energy Gun Constructs Ballistic Gun Shotgun Launcher Grenade Launcher Slashing Weapon Mining Claw Special Melee Weapon Dirty Datajack Build | -11 -10 -10 -9 -8 -8 -8 -6 -6 -6 -6 -5 -5 -5 -4 -4 -4 -4 -3 -3 -3 ------- Run | Yrd Mat Min Mat Mat Sto Rec Fac Low Low Dat Pro Fac DSF Fac Upp Upp War Pro Res Arm Slots Evolved 14 | . . . 2 2 . . 4 . . . . 2 . 2 . . . . 2 . Power 1 | . . . . . . . 1 . . . . . . . . . . . . . Propulsion 2 | . . . . . . . 1 . . . . 1 . . . . . . . . Utility 8 | . . . . 2 . . 2 . . . . 1 . 2 . . . . 1 . Weapon 3 | . . . 2 . . . . . . . . . . . . . . . 1 . Parts Attached 75 | 6 10 . 4 1 6 2 5 2 2 . 2 3 . 14 1 2 5 1 2 7 Power 4 | 1 1 . 1 . . . 1 . . . . . . . . . . . . . Engine 2 | 1 1 . . . . . . . . . . . . . . . . . . . Core 2 | . . . 1 . . . 1 . . . . . . . . . . . . . Reactor . | . . . . . . . . . . . . . . . . . . . . . Propulsion 9 | 2 2 . . . . 1 1 . 1 . . 1 . 1 . . . . . . Treads 4 | . 2 . . . . 1 . . 1 . . . . . . . . . . . Leg 3 | 2 . . . . . . . . . . . 1 . . . . . . . . Wheel 2 | . . . . . . . 1 . . . . . . 1 . . . . . . Hover . | . . . . . . . . . . . . . . . . . . . . . Flight . | . . . . . . . . . . . . . . . . . . . . . Utility 36 | 1 2 . . 1 3 1 3 1 . . . 2 . 10 . 2 5 1 1 3 Device 27 | . . . . . 1 1 1 1 . . . 2 . 10 . 1 5 1 1 3 Storage 2 | 1 . . . . . . 1 . . . . . . . . . . . . . Processor 3 | . 1 . . . 1 . 1 . . . . . . . . . . . . . Hackware 1 | . . . . . . . . . . . . . . . . 1 . . . . Protection 3 | . 1 . . 1 1 . . . . . . . . . . . . . . . Artifact . | . . . . . . . . . . . . . . . . . . . . . Weapon 26 | 2 5 . 3 . 3 . . 1 1 . 2 . . 3 1 . . . 1 4 Energy Gun 3 | 1 . . . . . . . . . . . . . . . . . . . 2 Energy Cannon . | . . . . . . . . . . . . . . . . . . . . . Ballistic Gun 8 | 1 3 . 3 . 1 . . . . . . . . . . . . . . . Ballistic Cannon . | . . . . . . . . . . . . . . . . . . . . . Launcher 11 | . 2 . . . 1 . . 1 . . . . . 3 1 . . . 1 2 Special Weapon . | . . . . . . . . . . . . . . . . . . . . . Impact Weapon . | . . . . . . . . . . . . . . . . . . . . . Slashing Weapon 2 | . . . . . 1 . . . . . 1 . . . . . . . . . Piercing Weapon . | . . . . . . . . . . . . . . . . . . . . . Special Melee Weapon 2 | . . . . . . . . . 1 . 1 . . . . . . . . . Unidentified Prototypes 4 | . . . . . . . . . . . . . . . . . 3 1 . . Parts Lost 32 | . . . . . . 1 1 1 1 . 8 . . 3 . . . . 1 16 Power 4 | . . . . . . 1 . . . . 1 . . . . . . . . 2 Propulsion 7 | . . . . . . . . . . . 3 . . 1 . . . . . 3 Utility 8 | . . . . . . . . . . . . . . 2 . . . . 1 5 Weapon 13 | . . . . . . . 1 1 1 . 4 . . . . . . . . 6 Highest Loss Streak 6 | . . . . . . 1 1 1 1 . 6 . . 3 . . . . 1 5 To Critical Strikes . | . . . . . . . . . . . . . . . . . . . . . Average Slot Usage (%) 74 | . 99 100 100 90 95 80 63 73 77 86 58 39 41 53 66 68 72 68 64 36 Engine 3 | . 14 14 6 . . . 4 6 6 6 4 . . . . . 3 . . . Core 1 | . . . 4 9 9 1 . . . . . . . 3 5 5 2 . . . Treads 8 | . 18 28 22 18 18 13 . . 9 13 8 . . . . . . . 3 3 Leg 1 | . 9 . . . . . . . . . . 4 5 . . . . . . . Wheel 1 | . . . . . . . 4 6 6 6 . . . 2 4 5 2 . . . Flight 1 | . . . . . . 1 6 6 1 . . . . 1 . . . . . . Device 13 | . . . . . 3 8 7 13 13 13 13 22 23 22 31 31 29 31 32 13 Storage 5 | . 14 14 11 9 9 9 6 6 6 6 3 . . . . . . . . . Processor 10 | . 10 14 11 9 10 9 9 13 13 13 13 11 11 10 10 10 10 10 9 4 Energy Gun 2 | . 4 . . . . . 4 1 . . . . . . 3 5 7 5 4 5 Ballistic Gun 14 | . 13 14 44 36 34 36 16 12 13 13 4 . . 1 1 . . . . 2 Ballistic Cannon 1 | . . . . . . . . . . 6 3 . . 3 5 5 1 5 . . Launcher 2 | . 9 14 . . 1 . . 5 1 . . . . . 3 5 5 5 2 . Naked Turns 23 | . . . . . . . . . . . . . . . . . . . . 23 Heaviest Build 66 | 11 17 16 22 25 26 25 38 41 41 41 41 15 15 47 47 45 60 57 66 54 Greatest Support 66 | 20 46 46 46 46 46 46 19 16 48 48 48 25 25 40 41 41 61 61 61 66 Greatest Overweight (x) 6 | . . . . . . 1 2 2 2 . . . . 6 1 1 1 . 1 . Average Overweight (x) . | . . . . . . . 1 2 . . . . . . . 1 . . . . Largest Inventory Capacity 8 | 8 8 8 8 8 8 8 8 8 8 8 8 5 5 5 5 5 5 5 5 5 Average Capacity 6 | 6 8 8 8 8 8 8 8 8 8 8 6 5 5 5 5 5 5 5 5 5 Most Carried 8 | 1 8 8 7 7 8 8 8 8 7 7 8 5 5 5 5 4 5 5 5 5 Average Carried 5 | . 5 8 6 6 7 7 7 7 6 7 6 5 5 3 4 4 4 5 4 3 Final Capacity 8 | 8 8 8 8 8 8 8 8 8 8 8 5 5 5 5 5 5 5 5 5 5 Final Carried 8 | 1 8 8 7 7 8 8 8 7 7 7 5 5 5 5 4 4 5 5 5 3 Scrap Engine Consumption 104 | . . . . . . 14 7 4 6 . 4 . 7 20 . 4 11 3 6 18 Constructs Created 11 | . . . . . . 2 2 . 1 . . . . 4 . . 1 . . 1 Constructs Modified 27 | . . . . . . 2 1 1 1 . 2 . . 5 2 . 5 1 3 4 Class Distribution -------------------- 31% | Mutant 22% | Gunner 20% | Skirmisher 14% | Tank 10% | Construct Dominant Class ---------------- Mutant | -10/Materials Mutant | -10/Mines Gunner | -9/Materials Gunner | -8/Materials Gunner | -8/Storage Skirmisher | -8/Recycling Skirmisher | -6/Factory Gunner | -6/Lower Caves Mutant | -6/Lower Caves Construct | -6/Data Miner Construct | -5/Proximity Caves Mutant | -5/Factory Mutant | -5/DSF Mutant | -4/Factory Tank | -4/Upper Caves Tank | -4/Upper Caves Construct | -4/Warlord Construct | -3/Proximity Caves Tank | -3/Research Mutant | -3/Armory Resources | -11 -10 -10 -9 -8 -8 -8 -6 -6 -6 -6 -5 -5 -5 -4 -4 -4 -4 -3 -3 -3 ----------- Run | Yrd Mat Min Mat Mat Sto Rec Fac Low Low Dat Pro Fac DSF Fac Upp Upp War Pro Res Arm Matter Collected 2302 | 213 199 22 250 52 280 157 123 105 58 . 96 . . 124 41 199 74 80 99 130 Remotely . | . . . . . . . . . . . . . . . . . . . . . Salvage Created 2457 | . 157 . 304 52 330 172 207 24 46 . 77 . . 79 41 121 . 53 346 448 Parts 164 | . 10 . 21 5 28 13 8 1 3 . 7 . . 8 4 3 . 2 11 40 Haulers Intercepted . | . . . . . . . . . . . . . . . . . . . . . Recyclers Shooed 3 | . . . 2 . . . . . . . . . . 1 . . . . . . Parts Field Recycled . | . . . . . . . . . . . . . . . . . . . . . Retrieved Matter . | . . . . . . . . . . . . . . . . . . . . . Parts Self-Destructed 29 | . . . . . . . . 2 2 . 13 . . . 6 6 . . . . Prevented . | . . . . . . . . . . . . . . . . . . . . . Kills | -11 -10 -10 -9 -8 -8 -8 -6 -6 -6 -6 -5 -5 -5 -4 -4 -4 -4 -3 -3 -3 ------- Run | Yrd Mat Min Mat Mat Sto Rec Fac Low Low Dat Pro Fac DSF Fac Upp Upp War Pro Res Arm Combat Hostiles Destroyed 80 | . 6 . 7 1 13 4 3 3 4 . 5 . . 5 1 3 . 2 9 14 Guns 43 | . 2 . 7 1 8 4 3 . 2 . 2 . . . . 1 . 1 3 9 Cannons 9 | . . . . . . . . . . . 3 . . 3 . . . 1 . 2 AOE 27 | . 3 . . . 5 . . 3 2 . . . . 2 1 2 . . 6 3 Classes Destroyed 11 | . 2 . 1 . 1 1 . . . . . . . . 1 . . . 2 3 Worker 1 | . . . . . . . . . . . . . . . . . . . 1 . Recycler 1 | . . . . . . . . . . . . . . . . . . . 1 . Watcher 2 | . . . . . 1 . 1 . . . . . . . . . . . . . Swarmer 39 | . 3 . . . 8 . . 3 4 . 5 . . 5 . 1 . . 5 5 Cutter 3 | . . . . . . . . . . . . . . . . . . . . 3 Saboteur 2 | . . . . . . . . . . . . . . . . . . . . 2 Grunt 14 | . 3 . 3 . . . 1 . . . . . . . . 1 . . 4 2 Protector 1 | . . . . . . 1 . . . . . . . . . . . . . . Sentry 16 | . . . 4 1 5 3 2 . . . . . . . . 1 . . . . Hunter 2 | . . . . . . . . . . . . . . . . . . . . 2 Programmer 3 | . . . . . . . . . . . . . . . 1 . . 2 . . Best Kill Streak 10 | . 3 . 2 1 5 2 2 3 4 . 4 . . 5 1 3 . 2 10 8 Combat Bots Only 9 | . 3 . 2 1 5 2 2 3 4 . 4 . . 5 1 3 . 2 9 8 Max Kills in Single Turn 4 | . 2 . 1 1 3 1 1 3 1 . 1 . . 2 1 2 . 1 4 3 Gunslinging . | . . . . . . . . . . . . . . . . . . . . . Exploded 3 | . 2 . . . 3 . . 3 1 . . . . 2 1 2 . . 3 3 Melee . | . . . . . . . . . . . . . . . . . . . . . Uniques/NPCs Destroyed . | . . . . . . . . . . . . . . . . . . . . . Combat | -11 -10 -10 -9 -8 -8 -8 -6 -6 -6 -6 -5 -5 -5 -4 -4 -4 -4 -3 -3 -3 -------- Run | Yrd Mat Min Mat Mat Sto Rec Fac Low Low Dat Pro Fac DSF Fac Upp Upp War Pro Res Arm Hostile Shots Fired 713 | . 41 1 9 2 41 8 67 13 13 . 134 . 3 64 5 3 8 9 31 261 Missed 253 | . 15 . 3 2 8 3 27 6 3 . 51 . 2 19 4 1 4 2 10 93 Damage Taken 8202 | . 278 7 93 . 295 77 338 150 143 . 1528 . 66 841 8 17 39 128 386 3808 Core 2032 | . 66 . . . 33 14 53 16 . . 265 . . 274 . 7 . . 53 1251 Absorbed by Shields 146 | . . . . . . . . . . . . . . . 9 19 5 35 48 30 Ignored by Resistances 189 | . . . . . . . . . . . . . . . . 13 47 . 129 . Regen/Repaired (Parts) 1577 | . . . . . . . 6 92 13 . 94 . . 440 39 100 74 . 24 695 Core Remaining (%) 85 | 100 . 73 100 . . 91 . . . . 60 . 100 . . . . 75 . . Volleys Fired 162 | . 23 . 11 1 18 7 11 4 6 . 14 . . 15 1 3 7 8 11 22 Largest 4 | . 2 . 4 4 4 4 4 2 1 . 3 . . 2 3 3 2 2 3 3 Hottest 486 | . 70 . 92 92 92 92 105 66 36 . 115 . . 91 140 140 147 147 179 486 Shots Fired 357 | . 37 . 38 4 51 28 35 5 6 . 36 . . 26 3 5 8 12 17 46 Gun 268 | . 35 . 38 4 44 28 35 1 4 . 16 . . 2 1 1 6 6 9 38 Cannon 62 | . . . . . . . . . . . 20 . . 24 1 1 1 4 5 6 Launcher 27 | . 2 . . . 7 . . 4 2 . . . . . 1 3 1 2 3 2 Special . | . . . . . . . . . . . . . . . . . . . . . Kinetic 233 | . 14 . 38 4 44 28 31 . 4 . 36 . . 26 2 1 1 4 . . Thermal 86 | . 21 . . . . . 4 1 . . . . . . . 1 6 6 9 38 Explosive 27 | . 2 . . . 7 . . 4 2 . . . . . 1 3 1 2 3 2 Electromagnetic . | . . . . . . . . . . . . . . . . . . . . . Entropic 11 | . . . . . . . . . . . . . . . . . . . 5 6 Robot Hit Streak 17 | . 4 . 17 2 14 11 4 . 2 . 5 . . 4 . 3 1 5 8 6 Robot Miss Streak 11 | . 2 . 3 3 4 3 4 2 5 . 9 . . 11 1 . 1 2 4 4 Penetration Max 1 | . . . . . . . . . . . . . . . . . . . . 1 Secondary Targets 4 | . . . . . . . . . . . . . . . . . . . . 4 Max Gunslinging Chain 1 | . . . . . . . . . . . . . . . . . . . . 1 Shots Hit Robots 190 | . 20 . 25 2 26 16 27 . 4 . 25 . . 6 . 3 1 5 7 23 Core Hits 164 | . 9 . 16 2 23 6 17 8 10 . 22 . . 4 1 6 3 2 19 16 Critical Kills . | . . . . . . . . . . . . . . . . . . . . . Critical Parts Destroyed 1 | . . . . . 1 . . . . . . . . . . . . . . . Critical Strikes 3 | . 1 . . . 1 . . . . . 1 . . . . . . . . . Burn 1 | . 1 . . . . . . . . . . . . . . . . . . . Destroy 1 | . . . . . 1 . . . . . . . . . . . . . . . Blast 1 | . . . . . . . . . . . 1 . . . . . . . . . Melee Attacks 8 | . . . . . 1 . . . . . 7 . . . . . . . . . Impact . | . . . . . . . . . . . . . . . . . . . . . Slashing 4 | . . . . . 1 . . . . . 3 . . . . . . . . . Piercing 4 | . . . . . . . . . . . 4 . . . . . . . . . Sneak Attacks . | . . . . . . . . . . . . . . . . . . . . . Combat Hostiles . | . . . . . . . . . . . . . . . . . . . . . Follow-up Attacks . | . . . . . . . . . . . . . . . . . . . . . Damage Inflicted 7437 | . 437 . 384 34 659 242 339 263 278 . 436 . . 640 48 291 183 505 1355 1343 Guns 2990 | . 261 . 384 34 391 242 339 5 36 . 144 . . 55 . 25 . 143 178 753 Cannons 1211 | . . . . . . . . . . . 231 . . 155 . 25 68 170 162 400 Explosions 3175 | . 176 . . . 268 . . 258 242 . . . . 430 48 241 115 192 1015 190 Melee 61 | . . . . . . . . . . . 61 . . . . . . . . . Ramming . | . . . . . . . . . . . . . . . . . . . . . Kinetic 2354 | . 124 . 384 34 391 242 295 . 36 . 375 . . 210 . 25 68 170 . . Thermal 1285 | . 137 . . . . . 44 5 . . . . . . . 25 . 143 178 753 Explosive 3175 | . 176 . . . 268 . . 258 242 . . . . 430 48 241 115 192 1015 190 Electromagnetic . | . . . . . . . . . . . . . . . . . . . . . Impact . | . . . . . . . . . . . . . . . . . . . . . Slashing 56 | . . . . . . . . . . . 56 . . . . . . . . . Piercing 5 | . . . . . . . . . . . 5 . . . . . . . . . Entropic 562 | . . . . . . . . . . . . . . . . . . . 162 400 Highest Corruption 4 | . . . . . . . . . . . . . . . . . . 1 . 4 Average Corruption 1 | . . . . . . . . . . . . . . . . . . 1 . 2 Corruption Purged . | . . . . . . . . . . . . . . . . . . . . . Corruption Blocked . | . . . . . . . . . . . . . . . . . . . . . Effects 2 | . . . . . . . . . . . . . . . . . . 1 . 1 Matter Fused 1 | . . . . . . . . . . . . . . . . . . . . 1 Heat Flow Errors 1 | . . . . . . . . . . . . . . . . . . 1 . . Overload Shots 3 | . . . . . . . . . . . . . . . . . . . . 3 Overflow Damage 249 | . 13 . . . 22 . . 2 . . 2 . . 125 . . . 24 37 24 Projectiles 59 | . . . . . . . . . . . 2 . . . . . . 21 12 24 Explosions 190 | . 13 . . . 22 . . 2 . . . . . 125 . . . 3 25 . Melee . | . . . . . . . . . . . . . . . . . . . . . Knockbacks 9 | . . . . . . . . . . . 7 . . . . . 1 1 . . Impact . | . . . . . . . . . . . . . . . . . . . . . Kinetic 8 | . . . . . . . . . . . 6 . . . . . 1 1 . . Secondary 1 | . . . . . . . . . . . 1 . . . . . . . . . Self-Inflicted Damage 154 | . . . . . . . . 51 . . . . . 86 . . . . . 17 Shots 4 | . . . . . . . . 2 . . . . . 1 . . . . . 1 Rammed . | . . . . . . . . . . . . . . . . . . . . . Targets Rammed . | . . . . . . . . . . . . . . . . . . . . . Kicked . | . . . . . . . . . . . . . . . . . . . . . Crushed . | . . . . . . . . . . . . . . . . . . . . . Highest Temperature 388 | . 388 . 42 27 66 21 33 . . . 184 . . 30 . . 15 117 30 375 Average Temperature 77 | . 159 . 17 15 24 10 14 . . . 80 . . 7 . . 9 66 15 106 Received Heat Transfer 1165 | . 150 . 27 . 54 18 105 . . . 312 . . 18 . . 27 . 43 411 Effects 2 | . 2 . . . . . . . . . . . . . . . . . . . Interference 2 | . 2 . . . . . . . . . . . . . . . . . . . Siege Activations . | . . . . . . . . . . . . . . . . . . . . . Robots Corrupted . | . . . . . . . . . . . . . . . . . . . . . Combat Hostiles . | . . . . . . . . . . . . . . . . . . . . . Parts Fried . | . . . . . . . . . . . . . . . . . . . . . Impact Corruptions . | . . . . . . . . . . . . . . . . . . . . . Robots Melted 1 | . 1 . . . . . . . . . . . . . . . . . . . Combat Hostiles 1 | . 1 . . . . . . . . . . . . . . . . . . . Parts Melted 4 | . 2 . . . . . . . . . . . . . . . . . . 2 Heat Transferred 1792 | . 481 . . . . . 200 25 . . . . . . . 37 . 111 185 753 Parts Sabotaged 5 | . . . . . . . . . . . . . . . . . . . . 5 Parts Stolen . | . . . . . . . . . . . . . . . . . . . . . Parts Stripped . | . . . . . . . . . . . . . . . . . . . . . Power Chain Reactions . | . . . . . . . . . . . . . . . . . . . . . Alert | -11 -10 -10 -9 -8 -8 -8 -6 -6 -6 -6 -5 -5 -5 -4 -4 -4 -4 -3 -3 -3 ------- Run | Yrd Mat Min Mat Mat Sto Rec Fac Low Low Dat Pro Fac DSF Fac Upp Upp War Pro Res Arm Peak Influence 781 | . 214 5 260 45 462 201 599 . . . . 781 561 609 . . . . 413 692 Initial 781 | . . 5 1 25 18 180 462 . . . . 781 546 294 . . . . 33 216 Average 228 | . 76 5 118 26 276 87 526 . . . . 781 548 394 . . . . 223 524 Maximum Alert Level 3 | . 1 . 1 . 2 1 2 . . . . 3 2 2 . . . . 2 2 Low Security (%) 52 | 100 74 100 77 100 28 96 . . . . . . . . . . . . 25 . Level 1 22 | . 25 . 22 . 46 3 . . . . . . . 48 . . . . 74 12 Level 2 23 | . . . . . 25 . 100 . . . . . 100 51 . . . . . 87 Level 3 1 | . . . . . . . . . . . . 100 . . . . . . . . Level 4 . | . . . . . . . . . . . . . . . . . . . . . Level 5 . | . . . . . . . . . . . . . . . . . . . . . High Security . | . . . . . . . . . . . . . . . . . . . . . Max Security . | . . . . . . . . . . . . . . . . . . . . . Squads Dispatched 17 | . 2 . 1 . 1 . 4 . . . 1 . 1 . . . . . 1 6 Investigation 6 | . 1 . 1 . . . . . . . . . . . . . . . 1 3 Extermination 1 | . . . . . . . . . . . . . . . . . . . . 1 Reinforcement 6 | . 1 . . . 1 . 1 . . . . . 1 . . . . . . 2 Assault 1 | . . . . . . . . . . . 1 . . . . . . . . . Garrison 3 | . . . . . . . 3 . . . . . . . . . . . . . Intercept . | . . . . . . . . . . . . . . . . . . . . . Searches Triggered 2 | . . . . . . . 1 . . . . . . 1 . . . . . . Data Miner Redirects 1 | . . . . . . . . . . . . . . . . . . . . 1 Construction Impeded . | . . . . . . . . . . . . . . . . . . . . . Haulers Reinforced . | . . . . . . . . . . . . . . . . . . . . . Active Scanning Responses . | . . . . . . . . . . . . . . . . . . . . . Cargo Convoy Interrupts . | . . . . . . . . . . . . . . . . . . . . . Stealth | -11 -10 -10 -9 -8 -8 -8 -6 -6 -6 -6 -5 -5 -5 -4 -4 -4 -4 -3 -3 -3 --------- Run | Yrd Mat Min Mat Mat Sto Rec Fac Low Low Dat Pro Fac DSF Fac Upp Upp War Pro Res Arm Distress Signals 3 | . . . 1 . 1 . . . . . 1 . . . . . . . . . Communications Jammed . | . . . . . . . . . . . . . . . . . . . . . Distress Signals . | . . . . . . . . . . . . . . . . . . . . . Times Spotted 176 | . 11 2 9 1 14 2 6 4 4 . 32 . 2 10 9 1 8 2 17 42 Peak Tracking Total 19 | . 3 3 4 1 6 1 4 4 4 . 14 . 2 7 9 1 4 2 8 19 Tactical Retreats 15 | . . . . . 1 . . . . . 5 . 1 1 1 . . . 2 4 Traps | -11 -10 -10 -9 -8 -8 -8 -6 -6 -6 -6 -5 -5 -5 -4 -4 -4 -4 -3 -3 -3 ------- Run | Yrd Mat Min Mat Mat Sto Rec Fac Low Low Dat Pro Fac DSF Fac Upp Upp War Pro Res Arm Traps Triggered 10 | . . . 1 . . . . . . . . . . 5 . . . . . 4 Indirectly . | . . . . . . . . . . . . . . . . . . . . . Trap Hack Attempts . | . . . . . . . . . . . . . . . . . . . . . Triggered . | . . . . . . . . . . . . . . . . . . . . . Disarmed . | . . . . . . . . . . . . . . . . . . . . . Reprogrammed . | . . . . . . . . . . . . . . . . . . . . . Reused . | . . . . . . . . . . . . . . . . . . . . . Traps Extracted . | . . . . . . . . . . . . . . . . . . . . . Installed . | . . . . . . . . . . . . . . . . . . . . . Triggered 11 | . . . . . . . . . . . . . . . . . 11 . . . Machines | -11 -10 -10 -9 -8 -8 -8 -6 -6 -6 -6 -5 -5 -5 -4 -4 -4 -4 -3 -3 -3 ---------- Run | Yrd Mat Min Mat Mat Sto Rec Fac Low Low Dat Pro Fac DSF Fac Upp Upp War Pro Res Arm Machines Disabled 9 | . 1 . . . 1 . . . . . . . . 1 . . . 1 1 4 Max in Single Turn 1 | . 1 . . . 1 . . . . . . . . 1 . . . 1 1 1 Machines Repaired . | . . . . . . . . . . . . . . . . . . . . . Machines Dismantled . | . . . . . . . . . . . . . . . . . . . . . Machines Sabotaged . | . . . . . . . . . . . . . . . . . . . . . Overloaded Fab Kills . | . . . . . . . . . . . . . . . . . . . . . Hacking | -11 -10 -10 -9 -8 -8 -8 -6 -6 -6 -6 -5 -5 -5 -4 -4 -4 -4 -3 -3 -3 --------- Run | Yrd Mat Min Mat Mat Sto Rec Fac Low Low Dat Pro Fac DSF Fac Upp Upp War Pro Res Arm Machines Accessed 56 | . 4 . 4 1 3 13 3 . 2 3 . 3 . 4 . 1 8 1 4 2 Terminals 28 | . 4 . 4 1 3 6 2 . . . . 1 . 2 . . . . 3 2 Fabricators 1 | . . . . . . . . . . . . . . . . . . . 1 . Repair Stations . | . . . . . . . . . . . . . . . . . . . . . Recycling Units 10 | . . . . . . 7 . . . . . 1 . 2 . . . . . . Scanalyzers . | . . . . . . . . . . . . . . . . . . . . . Garrison Access 2 | . . . . . . . 1 . . . . 1 . . . . . . . . Total Hacks 147 | . 10 . 13 2 5 43 4 . 2 25 . 4 . 9 . 1 14 1 8 6 Successful 104 | . 3 . 9 2 2 30 2 . 2 25 . 2 . 3 . 1 14 1 4 4 Failed 43 | . 7 . 4 . 3 13 2 . . . . 2 . 6 . . . . 4 2 Catastrophic 8 | . . . 1 . . 2 1 . . . . 1 . 3 . . . . . . Database Lockouts . | . . . . . . . . . . . . . . . . . . . . . Manual 33 | . 1 . 4 1 1 19 . . . . . . . 2 . . 1 . 2 2 Terminals 71 | . 10 . 13 2 5 20 3 . . . . 1 . 4 . . . . 7 6 Fabricators 1 | . . . . . . . . . . . . . . . . . . . 1 . Repair Stations . | . . . . . . . . . . . . . . . . . . . . . Recycling Units 29 | . . . . . . 23 . . . . . 1 . 5 . . . . . . Scanalyzers . | . . . . . . . . . . . . . . . . . . . . . Garrison Access 3 | . . . . . . . 1 . . . . 2 . . . . . . . . Terminal Hacks 75 | . 3 . 7 2 2 9 2 . 2 25 . 1 . . . 1 14 1 2 4 Record 18 | . . . . . . . . . . 6 . . . . . . 9 1 . 2 Part Schematic 12 | . . . . . . . . . . 12 . . . . . . . . . . Robot Schematic 4 | . . . . . . . . . . 4 . . . . . . . . . . Robot Analysis 2 | . . . . . . 1 1 . . . . . . . . . . . . . Prototype ID Bank 15 | . 1 . 2 . . 4 1 . . 3 . . . . . . 4 . . . Open Door 6 | . . . . . 2 . . . 2 . . . . . . 1 1 . . . Open DSF 1 | . . . . . . . . . . . . 1 . . . . . . . . Level Access Points 1 | . . . . . . . . . . . . . . . . . . . . 1 Branch Access Points 3 | . . . . 1 . . . . . . . . . . . . . . 1 1 Emergency Access Points 2 | . . . 2 . . . . . . . . . . . . . . . . . Alert Level 2 | . . . . . . 2 . . . . . . . . . . . . . . Unreport Threat 2 | . . . . 1 . 1 . . . . . . . . . . . . . . Locate Traps 5 | . 2 . 2 . . . . . . . . . . . . . . . 1 . Security Status 1 | . . . . . . 1 . . . . . . . . . . . . . . Surveillance Status 1 | . . . 1 . . . . . . . . . . . . . . . . . Fabricator Hacks . | . . . . . . . . . . . . . . . . . . . . . Repair Station Hacks . | . . . . . . . . . . . . . . . . . . . . . Recycling Unit Hacks 16 | . . . . . . 12 . . . . . 1 . 3 . . . . . . Process 2 | . . . . . . 2 . . . . . . . . . . . . . . Report Inventory 9 | . . . . . . 7 . . . . . . . 2 . . . . . . Retrieve Matter 1 | . . . . . . 1 . . . . . . . . . . . . . . Retrieve Components 4 | . . . . . . 2 . . . . . 1 . 1 . . . . . . Scanalyzer . | . . . . . . . . . . . . . . . . . . . . . Garrison Access Hacks . | . . . . . . . . . . . . . . . . . . . . . Unauthorized Hacks 13 | . . . 2 . . 9 . . . . . . . . . . . . 2 . Terminals 7 | . . . 2 . . 3 . . . . . . . . . . . . 2 . Botnet 6 | . . . 2 . . 3 . . . . . . . . . . . . 1 . Disrupt 1 | . . . . . . . . . . . . . . . . . . . 1 . Fabricators . | . . . . . . . . . . . . . . . . . . . . . Repair Stations . | . . . . . . . . . . . . . . . . . . . . . Recycling Units 6 | . . . . . . 6 . . . . . . . . . . . . . . Tunnel 6 | . . . . . . 6 . . . . . . . . . . . . . . Scanalyzers . | . . . . . . . . . . . . . . . . . . . . . Garrison Access . | . . . . . . . . . . . . . . . . . . . . . Data Cores Recovered . | . . . . . . . . . . . . . . . . . . . . . Used . | . . . . . . . . . . . . . . . . . . . . . Hacking Detections 35 | . 3 . 4 1 3 9 3 . . . . 2 . 4 . . . . 4 2 Full Trace Events 8 | . 2 . . . . 3 . . . . . . . . . . . . 1 2 Feedback Events 1 | . . . . . . . . . . . . . . . . . . . . 1 Corruption 1 | . . . . . . . . . . . . . . . . . . . . 1 Feedback Blocked . | . . . . . . . . . . . . . . . . . . . . . Robot Schematics Acquired 4 | . . . . . . . . . . 4 . . . . . . . . . . Robots Built . | . . . . . . . . . . . . . . . . . . . . . Authchips . | . . . . . . . . . . . . . . . . . . . . . Time . | . . . . . . . . . . . . . . . . . . . . . Total Robot Build Rating . | . . . . . . . . . . . . . . . . . . . . . Part Schematics Acquired 12 | . . . . . . . . . . 12 . . . . . . . . . . Parts Built . | . . . . . . . . . . . . . . . . . . . . . Authchips . | . . . . . . . . . . . . . . . . . . . . . Time . | . . . . . . . . . . . . . . . . . . . . . Total Part Build Rating . | . . . . . . . . . . . . . . . . . . . . . Parts Repaired . | . . . . . . . . . . . . . . . . . . . . . Time . | . . . . . . . . . . . . . . . . . . . . . Parts Recycled . | . . . . . . . . . . . . . . . . . . . . . Recycled Matter 44 | . . . . . . 44 . . . . . . . . . . . . . . Retrieved Matter 31 | . . . . . . 31 . . . . . . . . . . . . . . Retrieved Components 10 | . . . . . . 6 . . . . . 2 . 2 . . . . . . Parts Scanalyzed . | . . . . . . . . . . . . . . . . . . . . . Part Schematics Acquired . | . . . . . . . . . . . . . . . . . . . . . Parts Damaged . | . . . . . . . . . . . . . . . . . . . . . Bothacking | -11 -10 -10 -9 -8 -8 -8 -6 -6 -6 -6 -5 -5 -5 -4 -4 -4 -4 -3 -3 -3 ------------ Run | Yrd Mat Min Mat Mat Sto Rec Fac Low Low Dat Pro Fac DSF Fac Upp Upp War Pro Res Arm Used RIF Installer . | . . . . . . . . . . . . . . . . . . . . . Robots Hacked . | . . . . . . . . . . . . . . . . . . . . . Non-combat . | . . . . . . . . . . . . . . . . . . . . . Combat . | . . . . . . . . . . . . . . . . . . . . . Robot Hacks Applied . | . . . . . . . . . . . . . . . . . . . . . Relay Couplers Released . | . . . . . . . . . . . . . . . . . . . . . Fabnet Peak Effective % . | . . . . . . . . . . . . . . . . . . . . . Robots Rewired 2 | . . . . . . 2 . . . . . . . . . . . . . . Allies Hacked . | . . . . . . . . . . . . . . . . . . . . . Hacks Repelled . | . . . . . . . . . . . . . . . . . . . . . Allies | -11 -10 -10 -9 -8 -8 -8 -6 -6 -6 -6 -5 -5 -5 -4 -4 -4 -4 -3 -3 -3 -------- Run | Yrd Mat Min Mat Mat Sto Rec Fac Low Low Dat Pro Fac DSF Fac Upp Upp War Pro Res Arm Total Allies 7 | . . . . . . 2 . . . . 2 . . 3 . . . . . . Largest Group 3 | . . . . . . 2 2 . . . 1 . . 3 . . . . . . Highest-Rated Group 138 | . . . . . . 34 34 . . . 96 . . 138 . . . . . . Highest-Rated Ally 96 | . . . . . . 18 18 . . . 96 . . 46 . . . . . . Total Orders . | . . . . . . . . . . . . . . . . . . . . . Ally Attacks 42 | . . . . . . . 4 . . . 16 . . 22 . . . . . . Total Damage 1230 | . . . . . . . 74 . . . 478 . . 678 . . . . . . Kills 8 | . . . . . . . . . . . 2 . . 6 . . . . . . Allies Corrupted 1 | . . . . . . . . . . . . . . 1 . . . . . . Allies Melted . | . . . . . . . . . . . . . . . . . . . . . Intel | -11 -10 -10 -9 -8 -8 -8 -6 -6 -6 -6 -5 -5 -5 -4 -4 -4 -4 -3 -3 -3 ------- Run | Yrd Mat Min Mat Mat Sto Rec Fac Low Low Dat Pro Fac DSF Fac Upp Upp War Pro Res Arm Robot Analysis Total 2 | . . . . . . 1 1 . . . . . . . . . . . . . Derelict Logs Recovered 4 | . . . . . . . . 1 1 . 2 . . . . . . . . . Drone Launches . | . . . . . . . . . . . . . . . . . . . . . Drone Recoveries . | . . . . . . . . . . . . . . . . . . . . . Exploration | -11 -10 -10 -9 -8 -8 -8 -6 -6 -6 -6 -5 -5 -5 -4 -4 -4 -4 -3 -3 -3 ------------- Run | Yrd Mat Min Mat Mat Sto Rec Fac Low Low Dat Pro Fac DSF Fac Upp Upp War Pro Res Arm Turns Passed 7698 | 68 698 259 429 87 339 1110 375 670 523 88 403 85 51 543 171 375 438 189 383 414 Spaces Moved 6418 | 52 372 152 226 49 150 490 236 507 431 79 437 75 43 440 257 399 767 408 379 469 Core 324 | 7 . . . . . . . . . . 243 18 . 6 . . . . . 50 Treads 2562 | . 248 152 226 49 150 416 . . 325 79 194 . . . . . . . 304 419 Legs 345 | 45 124 . . . . . . . . . . 57 43 76 . . . . . . Wheels 1797 | . . . . . . . 180 507 106 . . . . 54 202 399 349 . . . Hover 1002 | . . . . . . . . . . . . . . 101 . . 418 408 75 . Flight 388 | . . . . . . 74 56 . . . . . . 203 55 . . . . . Fastest Speed 34 | 50 120 160 160 160 160 132 65 130 112 112 50 50 120 40 40 88 34 34 34 46 Average Speed 96 | 110 146 160 160 160 160 155 124 130 116 112 76 103 120 94 64 88 46 34 66 46 Slowest Speed 350 | 120 160 160 160 160 160 160 145 130 130 112 112 120 120 350 88 88 88 34 94 50 Overloaded Moves . | . . . . . . . . . . . . . . . . . . . . . Propulsion Burnouts . | . . . . . . . . . . . . . . . . . . . . . Robots Hopped 1 | . . . . . . . . . . . . . . 1 . . . . . . Cave-ins Triggered . | . . . . . . . . . . . . . . . . . . . . . Exploration Rate (%) 43 | 3 68 45 30 7 24 99 7 76 57 73 72 2 49 12 45 56 90 55 10 27 Regions Visited 20 Branch Regions 12 Pre-discovered Areas 7 | . . . . . . 6 . . . 1 . . . . . . . . . . Known Exits Taken 4 | . . . . 1 . . . . . . 1 1 . . . . . . 1 . Unknown Exits Taken 15 | 1 1 1 1 . 1 1 1 1 1 1 . . . 1 1 1 1 1 . . Scrap Searched 10 | . . 1 . . . . . 4 . . 1 . . . . 3 . 1 . . Spaces Dug 66 | . 9 . . . . . . 10 . . . . . . . 30 1 . . 16 Terrain Destroyed 293 | . 13 . . . 42 . . 25 3 . 3 . . 32 15 71 23 24 11 31 Melee . | . . . . . . . . . . . . . . . . . . . . . Projectile 25 | . . . . . . . . . . . 3 . . 4 . . 3 1 5 9 AOE 268 | . 13 . . . 42 . . 25 3 . . . . 28 15 71 20 23 6 22 Terrain Rammed . | . . . . . . . . . . . . . . . . . . . . . Walls Destroyed . | . . . . . . . . . . . . . . . . . . . . . Machines Disabled . | . . . . . . . . . . . . . . . . . . . . . Actions | -11 -10 -10 -9 -8 -8 -8 -6 -6 -6 -6 -5 -5 -5 -4 -4 -4 -4 -3 -3 -3 --------- Run | Yrd Mat Min Mat Mat Sto Rec Fac Low Low Dat Pro Fac DSF Fac Upp Upp War Pro Res Arm Total 7607 | 59 488 168 269 55 211 823 292 513 445 78 473 81 42 533 260 418 841 445 492 621 Wait 844 | 1 63 17 25 4 33 270 37 . 6 . 8 4 . 60 2 13 52 27 99 123 Move 6396 | 51 371 151 225 48 149 489 235 506 430 78 436 74 42 437 256 398 766 407 378 469 Hop 1 | . . . . . . . . . . . . . . 1 . . . . . . Pick Up 23 | 1 11 . 2 1 2 . 1 . 1 . . . . 2 . . 2 . . . Fast Attach 50 | 6 6 . 1 . 2 1 3 1 1 . . 3 . 12 . 2 5 2 . 5 Attach 18 | . 1 . 2 1 1 1 1 1 1 . 2 . . 2 1 . . . 2 2 Detach 9 | . 1 . . . . 1 1 . . . 2 . . 1 . . 1 . 2 . Swap 8 | . 3 . 1 . 3 . 1 . . . . . . . . . . . . . Drop 38 | . 9 . 2 . 2 4 2 1 . . 4 . . 3 . 2 8 1 . . Fire 162 | . 23 . 11 1 18 7 11 4 6 . 14 . . 15 1 3 7 8 11 22 Melee 8 | . . . . . 1 . . . . . 7 . . . . . . . . . Ram . | . . . . . . . . . . . . . . . . . . . . . Kick . | . . . . . . . . . . . . . . . . . . . . . Crush . | . . . . . . . . . . . . . . . . . . . . . Escape Stasis . | . . . . . . . . . . . . . . . . . . . . . Rewire 50 | . . . . . . 50 . . . . . . . . . . . . . . Trap . | . . . . . . . . . . . . . . . . . . . . . Miscellaneous . | . . . . . . . . . . . . . . . . . . . . . Route ------- -11/Scrapyard -10/Materials (discovered 3 exits: *Mat x2 / [*Min]) -10/Mines -9/Materials -8/Materials -8/Storage -8/Recycling -6/Factory -6/Lower Caves -6/Lower Caves (discovered 2 exits: *Fac / *Dat) -6/Data Miner -5/Proximity Caves -5/Factory -5/DSF -4/Factory (discovered 2 exits: [*Upp] / Ext) -4/Upper Caves -4/Upper Caves -4/Warlord -3/Proximity Caves -3/Research (discovered 3 exits: *Arm / Tes x2) -3/Armory (discovered 2 exits: Res x2) History --------- Turn | Location | Event 8 | -11/Scrapyard | Discovered new exit (range 15) 69 | -11/Scrapyard | Entered Materials 285 | -10/Materials | Discovered new exit (range 9) 330 | -10/Materials | Build established: Mutant 473 | -10/Materials | Discovered new exit (range 11) 532 | -10/Materials | Discovered new exit (range 16) 767 | -10/Materials | Entered Mines 1002 | -10/Mines | Discovered new exit (range 9) 1026 | -10/Mines | Entered Materials 1026 | -9/Materials | Evolved 2 slots: Weapon x2 1400 | -9/Materials | Build established: Gunner 1418 | -9/Materials | Discovered new exit (range 16) 1455 | -9/Materials | Entered another Materials area 1455 | -8/Materials | Evolved 2 slots: Utility x2 1521 | -8/Materials | Discovered new exit (range 8) 1523 | -8/Materials | Identified exit to Storage 1542 | -8/Materials | Entered Storage 1874 | -8/Storage | Used back door to open Recycling access 1874 | -8/Storage | Discovered new exit (range 5) 1881 | -8/Storage | Entered Recycling 1921 | -8/Recycling | Found Scrap Engine 2227 | -8/Recycling | Build established: Skirmisher 2553 | -8/Recycling | Discovered new exit (range 20) 2991 | -8/Recycling | Entered Factory 2991 | -6/Factory | Accompanied by 2 allies 2991 | -6/Factory | Evolved 4 slots: Power x1, Propulsion x1, Utility x2 3049 | -6/Factory | Garrison activated, responded to threat 3243 | -6/Factory | Discovered new exit (range 8) 3298 | -6/Factory | Spotted B-75 Beast 3341 | -6/Factory | Search patrols dispatched 3366 | -6/Factory | Entered Lower Caves 3367 | -6/Lower Caves | Encountered a Warlord checkpoint 3488 | -6/Lower Caves | Build established: Gunner 3551 | -6/Lower Caves | Discovered new exit (range 8) 3580 | -6/Lower Caves | Learned Factory garrison access intel 4036 | -6/Lower Caves | Entered another Lower Caves area 4063 | -6/Lower Caves | Discovered new exit (range 7) 4187 | -6/Lower Caves | Encountered a Warlord checkpoint 4410 | -6/Lower Caves | Discovered new exit (range 19) 4432 | -6/Lower Caves | Build established: Mutant 4559 | -6/Lower Caves | Entered Data Miner 4559 | -6/Data Miner | Discovered new exit (range 6) 4576 | -6/Data Miner | Met Data Miner 4600 | -6/Data Miner | Learned location of Section 7 (-2) 4600 | -6/Data Miner | Acquired the access code to Warlord's prototype stash 4617 | -6/Data Miner | Received God Mode back door access code from Data Miner 4647 | -6/Data Miner | Entered Proximity Caves 4754 | -5/Proximity Caves | Spotter reported a threat 4807 | -5/Proximity Caves | Spotter reported a threat 4809 | -5/Proximity Caves | Build established: Construct 4833 | -5/Proximity Caves | Attracted the attention of an 0b10 outpost 4834 | -5/Proximity Caves | Spotter reported a threat 4878 | -5/Proximity Caves | Learned Factory terminal intel 4887 | -5/Proximity Caves | Spotter reported a threat 4911 | -5/Proximity Caves | Spotter reported a threat 4933 | -5/Proximity Caves | Escorted by Enhanced Grunt 4956 | -5/Proximity Caves | Lost 6 parts (1p2n3w) 5020 | -5/Proximity Caves | Identified exit to Factory 5050 | -5/Proximity Caves | Entered Factory 5050 | -5/Factory | Evolved 2 slots: Propulsion x1, Utility x1 5051 | -5/Factory | Loaded intel: 26 terminal locations 5052 | -5/Factory | Loaded intel: 4 garrison access locations 5135 | -5/Factory | Identified exit to DSF 5135 | -5/Factory | Entered DSF 5153 | -5/DSF | Discovered new exit (range 20) 5164 | -5/DSF | Additional patrols routed to DSF 5186 | -5/DSF | Entered Factory 5186 | -4/Factory | Evolved 2 slots: Utility x2 5187 | -4/Factory | Identified exit to Extension 5199 | -4/Factory | Build established: Mutant 5358 | -4/Factory | Lost 3 parts (1n2u) 5400 | -4/Factory | Allied Derelicts emerged from ambush trap array 5436 | -4/Factory | Search patrols dispatched 5622 | -4/Factory | Spotted B-86 Titan 5625 | -4/Factory | Discovered new exit (range 19) 5729 | -4/Factory | Entered Upper Caves 5810 | -4/Upper Caves | Discovered new exit (range 12) 5863 | -4/Upper Caves | Attracted the attention of an 0b10 outpost 5900 | -4/Upper Caves | Entered another Upper Caves area 5970 | -4/Upper Caves | Spotted B-86 Titan 6093 | -4/Upper Caves | Encountered a Warlord checkpoint 6097 | -4/Upper Caves | Build established: Tank 6171 | -4/Upper Caves | Attracted the attention of an 0b10 checkpoint 6246 | -4/Upper Caves | Discovered new exit (range 13) 6275 | -4/Upper Caves | Entered Warlord 6349 | -4/Warlord | Visited the Vortex Lab 6370 | -4/Warlord | Warlord's base attacked by MAIN.C 6411 | -4/Warlord | Met Warlord 6424 | -4/Warlord | Opened Warlord's prototype stash 6439 | -4/Warlord | Found Prototype Device 6439 | -4/Warlord | Identified Thermal Barrier 6585 | -4/Warlord | Spotted B-86 Titan 6586 | -4/Warlord | Spotted B-90 Cyclops 6660 | -4/Warlord | Warlord forces counterattacked 6682 | -4/Warlord | Lost 3 allies 6709 | -4/Warlord | Discovered new exit (range 15) 6713 | -4/Warlord | Entered Proximity Caves 6801 | -3/Proximity Caves | Build established: Construct 6854 | -3/Proximity Caves | Discovered new exit (range 9) 6874 | -3/Proximity Caves | Found Alien Artifact 6874 | -3/Proximity Caves | Identified Dimensional Node Initializer 6874 | -3/Proximity Caves | Initialized slip node 6902 | -3/Proximity Caves | Entered Research 6902 | -3/Research | Evolved 2 slots: Utility x1, Weapon x1 7055 | -3/Research | Destroyed 9 combat bots 7203 | -3/Research | Build established: Tank 7213 | -3/Research | Identified exit to Armory 7213 | -3/Research | Identified exit to Testing 7285 | -3/Research | Entered Armory 7376 | -3/Armory | Destroyed 8 combat bots 7391 | -3/Armory | Spotted B-86 Titan 7444 | -3/Armory | Lost 4 parts (2u2w) 7608 | -3/Armory | Lost 3 parts (1u2w) 7644 | -3/Armory | Core integrity fell below 50% 7657 | -3/Armory | Incoming investigation squad redirected 7677 | -3/Armory | Core integrity fell below 20% 7682 | -3/Armory | Identified exit to Research 7699 | -3/Armory | Destroyed by C-35 Carver with Carbide Saw Last Messages --------------- 07674_ C-35 Carver destroyed. 07674_ Treaded Siege-Armored Exoskeleton destroyed. 07674_ Scrap Engine damaged due to network destabilization (-10). 07674_ Scrap Engine destroyed. 07676_ Exp. Coolant Injector severed. 07682_ Connecting with Terminal... >>Access(Main) Found 2 level access points to Research: (21,15) (97,18) Map updated. 07682_ Connecting with Terminal... Feedback: System corruption (+1%). 07682_ ALERT: Suspicious activity at Terminal A010. Dispatching Investigation squad. 07688_ Triggered Alarm Trap. 07688_ An alarm sounds. 07688_ ALERT: Alarm triggered, dispatching investigation squad. 07689_ Penetrated by Slug. 07689_ Transfer Shaft disabled. Map ----- +----------------------------------------------------+ | ?????????????????????????????????????????????????? | | ?????????????????????????????????????????????????? | | ?????????????????????????????????????????????????? | | ?????????????????????????????????????????????????? | | ?????????????????????????????????????????????????? | | ?????????????????????????????????????????????????? | | ?????????????????????????????????????????????????? | | ?????????????????????????????????????????????????? | | ?????????????????????????????????????????????????? | | ?????????????????????????????????????????????????? | | ???????????????????????? ??????????????????????? | | ???????????????????????? ??????????????????????? | | ???????????????????????? ??????????????????????? | | ???????????????????????# #?????????????????????? | | ???????????????????????+ #?????????????????????? | | ???????????????????????# #?????????????????????? | | ???????????????????????# #?????????????????????? | | ???????????????????????# #???? ???????????????? | | ???????????????????????# #????""???????????????? | | ???????????????????????# +??"""" ??????????????? | | ???????????????????????# #?""""" ????????####### | | ???????????????????????# # ???????# # | | ???????????????????????# #= ######## # | | ???????????????????????# #? !! = + # | | ???????????????????????# #????????# # | | ???????????????????????# @ #????????# """ # | | ???????????????????????# c #????????# "" # | | ???????????????????????# #????????# """ | | ???????????????????????# ########## | | ???????????????????????# c | | ???????????????????????+ ######## """ | | ???????????????????????# #??????# """ | | ???????????????????????##+####+##??????# """ | | ???????????????????????????????????????# ! | | ???????????????????????????????????????# | | ??????????????????????????????????????? ###### | | ???????????????????????????????????????######????? | | ?????????????????????????????????????????????????? | | ?????????????????????????????????????????????????? | | ?????????????????????????????????????????????????? | | | | | | | | | | | | | | | | | | | | | +----------------------------------------------------+ Best States ------------- Heat Dissipation 84 Coolant Potential 120 Energy Generation 36 Energy Capacity 636 Matter Stores 300 Matter Capacity 300 Sight Range 20 Robot Scan Range 16 Terrain Scan Density 10 Power Amplification 20 Armor Coverage 150 Resistance: KI 25 Resistance: TH 50 Phase Shifting 10 Evasion (%) 62 Targeting Accuracy 5 Core Analysis 6 Recoil Reduction 3 Item Schematics ----------------- Combat Drone Bay | -6/Data Miner | Free Lgt. Regenerative Plating | -6/Data Miner | Free Enh. Flexi-carbon Leg | -6/Data Miner | Free Imp. Thermal Defense Suite | -6/Data Miner | Free Hvy. Proton Cannon | -6/Data Miner | Free Imp. Antigrav System | -6/Data Miner | Free Imp. Phase Shifter | -6/Data Miner | Free Micro-nuke Launcher | -6/Data Miner | Free Imp. Force Field | -6/Data Miner | Free Lrn. Terrain Scanner | -6/Data Miner | Free Antigrav Array | -6/Data Miner | Free Adv. Force Field | -6/Data Miner | Free Robot Schematics ------------------ A-15 Conveyor | -6/Data Miner | Free S-27 Virus | -6/Data Miner | Free R-10 Processor | -6/Data Miner | Free L-61 Swordsman | -6/Data Miner | Free Fabricated ------------ Nothing Alien Tech Used ----------------- Dimensional Node Initializer Achievements -------------- Factory Defaults Challenges ------------ None Game ------ Seed VariableLongswordBarrier Manual? 0 Play Time 01:33:03 Cumulative 79.0 hours Start 2024.05.08 @ 21:11:52 End 2024.05.09 @ 18:44:03 Sessions 7 Manual Loads 0 Difficulty Rogue Special Mode None Game No. 74 Rogue 74 Adventurer 0 Explorer 0 Win Type - Total 3 Types 2/0/0/1/0/0/0/0/0 Lore% 58 Gallery% 63 Achievement% 51 Wizard Run 0 Options --------- Layout 0 ASCII 0 Keyboard 0 Movement Mouse Keybinds 0 Fullscreen 1 Font 18/Terminus Map View 76x50 Zoom Use 0% Tactical HUD 1 Map Filters NONE Filters NONE Steam 1 RUN: 14c2e5f8-3e27-458b-a8a3-9de63220d677